Cogmind - Beta 13 @@@ ROGUE MODE // 2024.05.18 @ 23:53:40 Player: Toa of Guts Result: Destroyed by G-67 Veteran with Field Laser Performance ------------- Evolutions (5) 2500 Regions Visited (16) 3200 Robots Destroyed (183) 915 Value Destroyed (6597) 6597 Prototype IDs (49) 980 Alien Tech Used (0) 0 Bonus (3125) 3125 TOTAL SCORE: 17317 Bonus ------- High Alert Combat Kills 55 Follower Combat Kills 82 Met Data Miner 300 Met Warlord at Base 500 MAIN.C Attacked Warlord 500 Warlord Defense Kills 1822 Friendly Fire -134 Cogmind --------- Core Integrity 0/1000 Matter 295/300 Energy 95/100 System Corruption 0% Temperature Cool (0) Movement Flying (35) Location -4/Proximity Caves Parts ------- > --- POWER (2) -------- (None) > --- PROPULSION (5) --- Cesium-ion Thruster > --- UTILITY (8) ------ (None) > --- WEAPON (2) ------- Vortex Lance > --- INVENTORY (5) ---- High-capacity Matter Pod (200) High-powered Tractor Beam Vortex Rail (21) Peak State ------------ > --- POWER ------------ Vortex Chain Reactor > --- PROPULSION ------- Antigrav System Antigrav System Cooled Antigrav System Cooled Antigrav System > --- UTILITY ---------- Advanced Cooling System Medium Storage Unit Advanced Visual Processing Unit Advanced Terrain Scanner Advanced Terrain Scan Processor Seismic Detector Makeshift Cloaking Device Advanced Shield Generator > --- WEAPON ----------- Vortex Catalyst Activator > --- INVENTORY -------- High-capacity Matter Pod Improved Weapon Shielding Advanced Remote Shield High-powered Tractor Beam Vortex Rail Vortex Rail Long-range Proton Cannon Vortex Lance [Rating: 103] Favorites ----------- Power Ion Engine Engine Ion Engine Power Core Micro Nuclear Core Reactor Vortex Chain Reactor Propulsion Light Treads Treads Light Treads Leg VSS Leg Wheel Subdweller Monowheel Hover Unit Antigrav System Flight Unit Cesium-ion Thruster Utility Seismic Detector Device Seismic Detector Storage Humpback Processor Advanced Visual Processing Unit Hackware System Shield Protection Improved Medium Armor Plating Weapon Falx Energy Gun Beam Rifle Energy Cannon Phase Cannon Ballistic Gun Subdweller Machine Gun Ballistic Cannon Advanced Assault Cannon Launcher Heavy Rocket Launcher Impact Weapon Heavy Flail Slashing Weapon Falx Piercing Weapon Vortex Lance Build | -11 -10 -10 -8 -7 -6 -6 -6 -6 -6 -6 -5 -5 -5 -5 -5 -4 ------- Run | Yrd Mat Sub Mat Fac Fac Was Fac Low Low Dat Pro Fac Upp Upp War Pro Slots Evolved 10 | . . . 4 2 2 . . . . . . 2 . . . . Power 1 | . . . . . 1 . . . . . . . . . . . Propulsion 3 | . . . 1 . . . . . . . . 2 . . . . Utility 6 | . . . 3 2 1 . . . . . . . . . . . Weapon . | . . . . . . . . . . . . . . . . . Parts Attached 296 | 6 13 29 53 43 1 . 22 12 6 . 12 30 30 4 34 1 Power 22 | 1 2 1 5 3 1 . 1 1 1 . 1 3 1 . 1 . Engine 12 | 1 1 1 5 1 1 . . . . . 1 1 . . . . Core 9 | . 1 . . 2 . . 1 1 1 . . 2 1 . . . Reactor 1 | . . . . . . . . . . . . . . . 1 . Propulsion 58 | 2 5 4 14 3 . . 4 . . . 2 11 5 1 7 . Treads 8 | . 2 1 5 . . . . . . . . . . . . . Leg 10 | 2 2 . . . . . 4 . . . 2 . . . . . Wheel 22 | . 1 3 9 3 . . . . . . . 5 . 1 . . Hover 15 | . . . . . . . . . . . . 6 5 . 4 . Flight 3 | . . . . . . . . . . . . . . . 3 . Utility 101 | 1 3 2 18 23 . . 10 5 3 . 6 11 7 3 9 . Device 44 | . . . 3 7 . . 7 3 1 . 4 6 4 2 7 . Storage 10 | 1 1 1 1 1 . . 1 . . . . 3 1 . . . Processor 14 | . . . . 6 . . 1 2 2 . 1 1 . 1 . . Hackware 1 | . . . 1 . . . . . . . . . . . . . Protection 32 | . 2 1 13 9 . . 1 . . . 1 1 2 . 2 . Artifact . | . . . . . . . . . . . . . . . . . Weapon 115 | 2 3 22 16 14 . . 7 6 2 . 3 5 17 . 17 1 Energy Gun 16 | . . 4 3 . . . 2 . . . . . 1 . 6 . Energy Cannon 14 | . . 1 1 . . . 2 1 . . 2 2 4 . 1 . Ballistic Gun 31 | 2 2 7 5 . . . . . . . . 3 9 . 3 . Ballistic Cannon 15 | . . 3 4 8 . . . . . . . . . . . . Launcher 6 | . . . . . . . 1 . 1 . 1 . . . 3 . Special Weapon . | . . . . . . . . . . . . . . . . . Impact Weapon 9 | . . . 3 4 . . . 2 . . . . . . . . Slashing Weapon 21 | . 1 7 . 2 . . 2 3 1 . . . 3 . 2 . Piercing Weapon 3 | . . . . . . . . . . . . . . . 2 1 Special Melee Weapon . | . . . . . . . . . . . . . . . . . Unidentified Prototypes 9 | . . . . . . . . . . . 1 1 . . 7 . Parts Lost 79 | . 2 . 27 4 . 3 1 . 2 . 21 1 8 3 6 1 Power 9 | . 1 . 3 . . . . . . . 3 1 . . 1 . Propulsion 25 | . 1 . 7 1 . . 1 . . . 5 . 5 2 2 1 Utility 34 | . . . 14 2 . 2 . . 2 . 9 . 1 1 3 . Weapon 11 | . . . 3 1 . 1 . . . . 4 . 2 . . . Highest Loss Streak 14 | . 2 . 14 2 . 3 1 . 2 . 11 1 7 3 3 1 To Critical Strikes . | . . . . . . . . . . . . . . . . . Average Slot Usage (%) 86 | . 99 84 85 91 83 74 79 87 84 88 78 80 99 90 84 14 Engine 7 | . 11 14 7 3 3 6 5 5 5 5 4 2 . . . . Core 2 | . 1 . . 3 6 6 5 5 5 5 3 2 11 11 6 . Treads 10 | . 18 20 13 . . . . . . . . . . . . . Leg 3 | . 9 . . . . . 7 22 22 22 14 2 . . . . Wheel 7 | . . 7 13 14 13 13 5 . . . . 12 13 2 3 . Hover 2 | . . . . . . . . . . . . 9 15 17 14 . Device 9 | . . . 7 13 13 11 24 18 8 11 11 19 23 22 23 . Storage 6 | . 14 7 8 7 6 4 4 . . . . 3 5 5 4 . Processor 7 | . . . . 22 20 17 12 19 25 27 27 17 11 11 10 . Protection 8 | . 13 6 17 7 6 4 . 5 5 5 4 . 4 5 3 . Energy Gun 5 | . . 13 3 . . . 3 . . . . . . . 3 . Energy Cannon 1 | . . 1 . . . . 3 2 . . 1 4 3 . . . Ballistic Gun 7 | . 27 10 6 2 . . . . . . . 1 6 11 3 . Ballistic Cannon 2 | . . 1 6 8 13 9 . . . . . . . . . . Slashing Weapon 1 | . . 1 . 1 . . 1 7 10 11 9 . . . 2 . Naked Turns 8 | . . . . . . . . . . . . . . . 8 . Heaviest Build 239 | 11 22 213 239 221 73 73 47 42 37 32 34 124 127 41 75 4 Greatest Support 86 | 20 40 40 40 40 40 40 86 86 86 86 86 74 74 44 48 11 Greatest Overweight (x) 13 | 3 1 10 13 8 1 1 1 . . . 11 9 1 3 6 . Average Overweight (x) 2 | . . 5 8 1 1 . . . . . . . . . 2 . Largest Inventory Capacity 35 | 8 10 35 35 35 15 15 5 5 5 5 5 25 25 10 10 5 Average Capacity 17 | 7 9 20 34 17 15 12 5 5 5 5 5 12 17 10 9 5 Most Carried 35 | 6 10 35 35 35 15 15 5 5 5 5 5 18 20 10 10 3 Average Carried 15 | 3 9 16 31 17 14 12 4 4 5 5 4 9 14 9 9 3 Final Capacity 35 | 8 10 35 35 15 15 5 5 5 5 5 5 25 10 10 5 5 Final Carried 35 | 6 10 35 35 15 15 5 5 5 5 5 4 18 10 10 4 3 Class Distribution -------------------- 40% | Mutant 33% | Hauler-Mutant 6% | Scavenger-Skirmisher 6% | Gladiator 3% | Scavenger-Scout 3% | Scavenger-Gladiator Dominant Class ---------------- Mutant | -10/Materials Hauler-Mutant | -10/Subcaves Hauler-Mutant | -8/Materials Mutant | -7/Factory Mutant | -6/Factory Mutant | -6/Waste Mutant | -6/Factory Gladiator | -6/Lower Caves Gladiator | -6/Lower Caves Gladiator | -6/Data Miner Scavenger-Gladiator | -5/Proximity Caves Mutant | -5/Factory Scavenger-Scout | -5/Upper Caves Scavenger-Scout | -5/Upper Caves Scavenger-Skirmisher | -5/Warlord Scavenger-Skirmisher | -4/Proximity Caves Resources | -11 -10 -10 -8 -7 -6 -6 -6 -6 -6 -6 -5 -5 -5 -5 -5 -4 ----------- Run | Yrd Mat Sub Mat Fac Fac Was Fac Low Low Dat Pro Fac Upp Upp War Pro Matter Collected 6224 | 245 295 435 1895 824 . . 573 334 189 . 186 361 467 100 320 . Remotely 833 | . . . 74 286 . . . . . . 50 . 213 . 210 . Salvage Created 6956 | . 444 404 2088 586 . . 427 192 208 . 879 660 523 50 226 269 Parts 346 | . 27 29 113 30 . . 13 5 14 . 33 41 16 . 17 8 Haulers Intercepted 5 | . 1 . 3 1 . . . . . . . . . . . . Recyclers Shooed 8 | . . . 2 . . . 2 . . . . 4 . . . . Parts Field Recycled . | . . . . . . . . . . . . . . . . . Retrieved Matter . | . . . . . . . . . . . . . . . . . Parts Self-Destructed 81 | . . 22 . . . . . 4 8 . 31 . 13 . . 3 Prevented 1 | . . . . . . . . . . . . . 1 . . . Kills | -11 -10 -10 -8 -7 -6 -6 -6 -6 -6 -6 -5 -5 -5 -5 -5 -4 ------- Run | Yrd Mat Sub Mat Fac Fac Was Fac Low Low Dat Pro Fac Upp Upp War Pro Combat Hostiles Destroyed 139 | . 7 12 44 14 . . 2 3 5 . 13 4 9 1 21 4 Melee 19 | . . . . . . . 1 3 3 . 7 . . . 1 4 Guns 40 | . 7 8 14 2 . . . . . . . 1 5 1 2 . Cannons 55 | . . 4 30 12 . . 1 . . . 1 3 4 . . . AOE 25 | . . . . . . . . . 2 . 5 . . . 18 . Classes Destroyed 21 | . 5 2 6 1 . . . . 1 . 1 . 1 . 4 . Worker 7 | . 1 . 2 . . . 2 . . . . 2 . . . . Builder 9 | . . . 4 1 . . 1 . . . . 3 . . . . Tunneler 4 | . . . 3 . . . 1 . . . . . . . . . Hauler 6 | . 1 . 3 1 . . 1 . . . . . . . . . Recycler 7 | . . . 2 . . . 1 . . . 2 2 . . . . Minesweeper 1 | . . . . . . . . . . . . . 1 . . . Mechanic 1 | . . . . . . . . . . . . . . . 1 . Operator 2 | . 1 . 1 . . . . . . . . . . . . . Drone 2 | . . . . . . . . . . . 2 . . . . . Watcher 12 | . 2 . 4 2 . . 1 . . . . 3 . . . . Swarmer 26 | . . 4 7 3 . . . . . . . . 2 . 10 . Saboteur 5 | . . . . . . . . . . . . . . . 5 . Grunt 53 | . 7 . 25 3 . . . 2 . . 4 . 4 1 3 4 Brawler 3 | . . . 2 . . . . . . . 1 . . . . . Duelist 2 | . . . 1 . . . . . . . 1 . . . . . Sentry 25 | . . . 9 6 . . 1 1 1 . 5 1 1 . . . Hunter 5 | . . . . . . . . . 2 . . 1 2 . . . Programmer 7 | . . . . 2 . . 1 . 2 . . 2 . . . . Striker 1 | . . . . . . . . . . . . . . . 1 . Executioner 2 | . . . . . . . . . . . . . . . 2 . Subdweller 8 | . . 8 . . . . . . . . . . . . . . Packrat 1 | . . . . . . . . . . . 1 . . . . . Best Kill Streak 22 | . 4 4 6 4 . . 1 2 3 . 7 5 6 1 22 4 Combat Bots Only 21 | . 4 4 4 3 . . 1 2 3 . 6 2 6 1 21 4 Max Kills in Single Turn 9 | . 1 1 2 1 . . 1 1 1 . 2 1 1 1 9 1 Gunslinging . | . . . . . . . . . . . . . . . . . Exploded 9 | . . . . . . . . . 1 . 2 . . . 9 . Melee 1 | . . . . . . . 1 1 1 . 1 . . . 1 1 Uniques/NPCs Destroyed . | . . . . . . . . . . . . . . . . . Combat | -11 -10 -10 -8 -7 -6 -6 -6 -6 -6 -6 -5 -5 -5 -5 -5 -4 -------- Run | Yrd Mat Sub Mat Fac Fac Was Fac Low Low Dat Pro Fac Upp Upp War Pro Hostile Shots Fired 1138 | . 44 57 343 189 . 3 54 15 54 . 138 31 87 8 105 10 Missed 297 | . 16 16 64 52 . . 17 8 16 . 39 9 20 2 35 3 Damage Taken 13195 | . 398 733 4121 1329 . 82 333 91 528 . 2105 449 1210 115 1563 138 Core 2284 | . 28 105 170 167 . 31 56 23 73 . 620 113 248 20 508 122 Absorbed by Shields 377 | . . . . . . . . . . . . . . . 377 . Redirected to Shielding 264 | . 30 . 94 20 . . . . . . . . 33 11 76 . Ignored by Resistances 165 | . . . 13 . . 10 . . . . 85 . 57 . . . Regen/Repaired (Parts) 83 | . . . . . . . . . . . . . . . 83 . Core Remaining (%) 59 | 100 . 46 69 76 . . . . . . 5 . . . . . Volleys Fired 555 | . 45 40 204 46 . . 46 4 5 . 23 85 37 6 14 . Largest 2 | . 2 2 2 2 . . 2 1 1 . 1 2 2 2 2 . Hottest 170 | . 40 90 119 96 . . 170 85 39 . 90 118 170 66 126 . Shots Fired 926 | . 90 76 388 88 . . 52 7 5 . 24 97 65 13 21 . Gun 474 | . 90 62 212 22 . . 7 . . . . 15 40 13 13 . Cannon 434 | . . 14 176 66 . . 41 7 . . 20 82 25 . 3 . Launcher 18 | . . . . . . . 4 . 5 . 4 . . . 5 . Special . | . . . . . . . . . . . . . . . . . Kinetic 600 | . 90 41 313 88 . . . . . . . 15 40 13 . . Thermal 287 | . . 35 75 . . . 45 7 . . 20 82 23 . . . Explosive 13 | . . . . . . . 4 . 5 . 4 . . . . . Electromagnetic 8 | . . . . . . . 3 . . . . . 2 . 3 . Entropic 18 | . . . . . . . . . . . . . . . 18 . Robot Hit Streak 21 | . 13 14 18 21 . . 18 . 19 . 5 12 14 9 5 . Robot Miss Streak 5 | . 5 1 5 2 . . 1 . 1 . 1 2 4 1 4 . Penetration Max 1 | . . . . . . . . . . . . . . 1 1 . Secondary Targets 5 | . 2 2 . . . . . . . . . . 1 . . . Max Gunslinging Chain 1 | . 1 1 . . . . . . . . . . 1 . . . Shots Hit Robots 646 | . 62 61 267 71 . . 30 6 6 . 32 52 32 9 10 8 Core Hits 304 | . 28 20 99 29 . . 11 2 10 . 34 22 17 4 24 4 Critical Kills 3 | . . . 1 . . . . . . . . . 2 . . . Critical Parts Destroyed 6 | . . . 2 . . . . . . . . . 1 2 1 . Critical Strikes 31 | . . 1 14 5 . . 1 . . . 2 . 3 2 1 2 Burn 7 | . . . 6 . . . 1 . . . . . . . . . Destroy 7 | . . . 2 . . . . . . . . . 3 2 . . Blast 11 | . . 1 5 5 . . . . . . . . . . . . Smash 1 | . . . 1 . . . . . . . . . . . . . Sever 2 | . . . . . . . . . . . 2 . . . . . Detonate 1 | . . . . . . . . . . . . . . . 1 . Sunder 2 | . . . . . . . . . . . . . . . . 2 Melee Attacks 138 | . 1 23 11 19 . . 14 8 6 . 26 . 10 . 10 10 Impact 24 | . . . 11 13 . . . . . . . . . . . . Slashing 104 | . 1 23 . 6 . . 14 8 6 . 26 . 10 . 10 . Piercing . | . . . . . . . . . . . . . . . . . Entropic 10 | . . . . . . . . . . . . . . . . 10 Sneak Attacks 10 | . . . 4 1 . . . . . . 4 . 1 . . . Combat Hostiles 1 | . . . . . . . . . . . 1 . . . . . Follow-up Attacks 3 | . . . . . . . . 1 . . 2 . . . . . Damage Inflicted 21511 | . 700 1032 5686 1780 . . 1086 275 583 . 2653 1658 900 263 4242 653 Guns 5588 | . 700 768 2504 314 . . 84 . . . . 302 344 263 309 . Cannons 7237 | . . 264 2769 1358 . . 711 . . . 296 1356 395 . 88 . Explosions 5656 | . . . . . . . 163 . 436 . 1212 . . . 3845 . Melee 3030 | . . . 413 108 . . 128 275 147 . 1145 . 161 . . 653 Ramming . | . . . . . . . . . . . . . . . . . Kinetic 8114 | . 700 464 4369 1672 . . . . . . . 302 344 263 . . Thermal 5162 | . . 568 904 . . . 753 . . . 545 1356 395 . 641 . Explosive 1562 | . . . . . . . 163 . 436 . 963 . . . . . Electromagnetic 130 | . . . . . . . 42 . . . . . . . 88 . Impact 521 | . . . 413 108 . . . . . . . . . . . . Slashing 1856 | . . . . . . . 128 275 147 . 1145 . 161 . . . Piercing . | . . . . . . . . . . . . . . . . . Entropic 4166 | . . . . . . . . . . . . . . . 3513 653 Highest Corruption 19 | . . . 1 5 . 19 19 15 17 17 17 6 6 6 6 . Average Corruption 8 | . . . 1 4 . 9 14 15 16 17 17 5 6 6 6 . Corruption Purged 5 | . . . . . . . 5 . . . . . . . . . Corruption Blocked . | . . . . . . . . . . . . . . . . . Effects 281 | . . . 21 20 . 5 48 50 32 3 46 5 28 20 3 . Message Errors 70 | . . . 3 5 . 1 11 14 8 1 10 3 6 8 . . Matter Fused 63 | . . . 7 4 . 2 8 13 9 1 11 1 4 2 1 . Heat Flow Errors 33 | . . . 1 1 . 1 7 7 2 . 7 . 4 2 1 . Energy Discharges 32 | . . . 2 1 . . 8 3 2 . 9 1 4 2 . . Parts Rejected 5 | . . . 2 2 . . . 1 . . . . . . . . Parts Fused 2 | . . . . . . . . 2 . . . . . . . . Data Loss (minor) 34 | . . . 2 4 . 1 4 6 4 . 5 . 4 3 1 . Data Loss (major) 16 | . . . 2 2 . . 3 1 4 . 3 . . 1 . . Misfires 10 | . . . . 1 . . 3 3 . . 1 . 1 1 . . Alerts 11 | . . . 1 . . . 3 . 1 1 . . 4 1 . . Misdirections 3 | . . . . . . . 1 . 2 . . . . . . . Weapon Failures 2 | . . . 1 . . . . . . . . . 1 . . . Overload Shots . | . . . . . . . . . . . . . . . . . Overflow Damage 1113 | . . . 207 124 . . 40 45 76 . 295 91 79 . 134 22 Projectiles 226 | . . . 36 36 . . 40 . . . 23 91 . . . . Explosions 264 | . . . . . . . . . 76 . 54 . . . 134 . Melee 623 | . . . 171 88 . . . 45 . . 218 . 79 . . 22 Knockbacks 28 | . . 1 20 7 . . . . . . . . . . . . Impact 2 | . . . 1 1 . . . . . . . . . . . . Kinetic 23 | . . 1 17 5 . . . . . . . . . . . . Secondary 3 | . . . 2 1 . . . . . . . . . . . . Self-Inflicted Damage 517 | . . . . 57 . . 11 . 54 . 224 . . . 171 . Shots 11 | . . . . 1 . . 1 . 3 . 5 . . . 1 . Rammed . | . . . . . . . . . . . . . . . . . Targets Rammed . | . . . . . . . . . . . . . . . . . Kicked . | . . . . . . . . . . . . . . . . . Crushed . | . . . . . . . . . . . . . . . . . Highest Temperature 457 | . 19 . 333 205 . 281 457 279 249 . 262 66 226 154 132 . Average Temperature 68 | . 5 . 67 61 . 149 88 75 109 . 89 16 92 68 54 . Received Heat Transfer 4041 | . 198 111 2196 417 . . 36 39 42 . 414 9 297 54 195 33 Effects 8 | . . . . . . . 8 . . . . . . . . . Shutdowns 2 | . . . . . . . 2 . . . . . . . . . Energy Bleed 2 | . . . . . . . 2 . . . . . . . . . Damage (minor) 1 | . . . . . . . 1 . . . . . . . . . Damage (major) 3 | . . . . . . . 3 . . . . . . . . . Siege Activations . | . . . . . . . . . . . . . . . . . Robots Corrupted . | . . . . . . . . . . . . . . . . . Combat Hostiles . | . . . . . . . . . . . . . . . . . Parts Fried 3 | . . . . 3 . . . . . . . . . . . . Impact Corruptions 10 | . . . 6 4 . . . . . . . . . . . . Robots Melted . | . . . . . . . . . . . . . . . . . Combat Hostiles . | . . . . . . . . . . . . . . . . . Parts Melted 16 | . . 1 3 . . . 4 . . . 2 3 1 2 . . Heat Transferred 6643 | . . 821 2236 . . . 1014 . . . 200 1591 481 . 300 . Parts Sabotaged 4 | . . . . . . . . . . . . . . . 4 . Parts Stolen . | . . . . . . . . . . . . . . . . . Parts Stripped . | . . . . . . . . . . . . . . . . . Power Chain Reactions 2 | . . . . . . . . . . . 2 . . . . . Alert | -11 -10 -10 -8 -7 -6 -6 -6 -6 -6 -6 -5 -5 -5 -5 -5 -4 ------- Run | Yrd Mat Sub Mat Fac Fac Was Fac Low Low Dat Pro Fac Upp Upp War Pro Peak Influence 519 | . 174 . 519 276 15 5 110 . . . . 228 . . . . Initial 229 | . . . . 229 15 5 . . . . . 165 . . . . Average 134 | . 22 . 228 126 15 3 35 . . . . 136 . . . . Maximum Alert Level 2 | . . . 2 1 . . . . . . . 1 . . . . Low Security (%) 75 | 100 100 . 52 79 100 100 100 . . . . 76 . . . . Level 1 17 | . . . 28 20 . . . . . . . 23 . . . . Level 2 7 | . . . 19 . . . . . . . . . . . . . Level 3 . | . . . . . . . . . . . . . . . . . Level 4 . | . . . . . . . . . . . . . . . . . Level 5 . | . . . . . . . . . . . . . . . . . High Security . | . . . . . . . . . . . . . . . . . Max Security . | . . . . . . . . . . . . . . . . . Squads Dispatched 23 | . . . 8 7 . . 1 . . . 2 5 . . . . Investigation 4 | . . . 2 1 . . . . . . . 1 . . . . Extermination 4 | . . . . 2 . . 1 . . . . 1 . . . . Reinforcement 11 | . . . 4 2 . . . . . . 2 3 . . . . Assault . | . . . . . . . . . . . . . . . . . Garrison 4 | . . . 2 2 . . . . . . . . . . . . Intercept . | . . . . . . . . . . . . . . . . . Searches Triggered . | . . . . . . . . . . . . . . . . . Construction Impeded 5 | . . . 2 . . . . . . . 2 1 . . . . Haulers Reinforced . | . . . . . . . . . . . . . . . . . Active Scanning Responses . | . . . . . . . . . . . . . . . . . Cargo Convoy Interrupts 1 | . . . . . . . . . . . . 1 . . . . Stealth | -11 -10 -10 -8 -7 -6 -6 -6 -6 -6 -6 -5 -5 -5 -5 -5 -4 --------- Run | Yrd Mat Sub Mat Fac Fac Was Fac Low Low Dat Pro Fac Upp Upp War Pro Distress Signals 12 | . 2 . 7 1 . . . . . . 1 1 . . . . Communications Jammed . | . . . . . . . . . . . . . . . . . Distress Signals . | . . . . . . . . . . . . . . . . . Times Spotted 224 | . 15 15 72 21 . 6 7 4 5 . 24 10 11 1 28 5 Peak Tracking Total 16 | . 4 6 5 4 . 6 2 3 3 . 10 2 7 1 16 5 Tactical Retreats 15 | . . 1 4 1 . . 1 1 . . 2 1 2 . 2 . Traps | -11 -10 -10 -8 -7 -6 -6 -6 -6 -6 -6 -5 -5 -5 -5 -5 -4 ------- Run | Yrd Mat Sub Mat Fac Fac Was Fac Low Low Dat Pro Fac Upp Upp War Pro Traps Triggered 12 | . 1 1 2 5 1 . 1 . . . . 1 . . . . Indirectly . | . . . . . . . . . . . . . . . . . Trap Hack Attempts . | . . . . . . . . . . . . . . . . . Triggered . | . . . . . . . . . . . . . . . . . Disarmed . | . . . . . . . . . . . . . . . . . Reprogrammed . | . . . . . . . . . . . . . . . . . Reused . | . . . . . . . . . . . . . . . . . Traps Extracted . | . . . . . . . . . . . . . . . . . Installed . | . . . . . . . . . . . . . . . . . Triggered 23 | . . . . . . . . . . . . 2 3 . 18 . Machines | -11 -10 -10 -8 -7 -6 -6 -6 -6 -6 -6 -5 -5 -5 -5 -5 -4 ---------- Run | Yrd Mat Sub Mat Fac Fac Was Fac Low Low Dat Pro Fac Upp Upp War Pro Machines Disabled 11 | . . 1 3 3 . . 1 . . . 2 1 . . . . Max in Single Turn 1 | . . 1 1 1 . . 1 . . . 1 1 . . . . Garrison Access 4 | . . . 1 1 1 . . . . . . 1 . . . . Machines Repaired . | . . . . . . . . . . . . . . . . . Machines Dismantled . | . . . . . . . . . . . . . . . . . Machines Sabotaged . | . . . . . . . . . . . . . . . . . Overloaded Fab Kills . | . . . . . . . . . . . . . . . . . Hacking | -11 -10 -10 -8 -7 -6 -6 -6 -6 -6 -6 -5 -5 -5 -5 -5 -4 --------- Run | Yrd Mat Sub Mat Fac Fac Was Fac Low Low Dat Pro Fac Upp Upp War Pro Machines Accessed 57 | . 8 1 8 10 1 . 5 3 1 4 . 7 . 1 8 . Terminals 30 | . 8 . 6 7 . . 3 . . . . 6 . . . . Fabricators 3 | . . . . 1 . . 2 . . . . . . . . . Repair Stations . | . . . . . . . . . . . . . . . . . Recycling Units . | . . . . . . . . . . . . . . . . . Scanalyzers 1 | . . . 1 . . . . . . . . . . . . . Garrison Access 5 | . . . 1 2 1 . . . . . . 1 . . . . Total Hacks 170 | . 21 1 24 26 2 . 12 10 1 32 . 18 . 1 22 . Successful 116 | . 8 1 16 12 1 . 5 10 1 32 . 7 . 1 22 . Failed 53 | . 12 . 8 14 1 . 7 . . . . 11 . . . . Catastrophic 10 | . 1 . . 3 . . 1 . . . . 5 . . . . Database Lockouts 1 | . 1 . . . . . . . . . . . . . . . Manual 46 | . 15 . 8 7 . . 9 . . . . 6 . . 1 . Terminals 85 | . 21 . 18 21 . . 8 . . . . 17 . . . . Fabricators 6 | . . . . 2 . . 4 . . . . . . . . . Repair Stations . | . . . . . . . . . . . . . . . . . Recycling Units . | . . . . . . . . . . . . . . . . . Scanalyzers 3 | . . . 3 . . . . . . . . . . . . . Garrison Access 9 | . . . 3 3 2 . . . . . . 1 . . . . Terminal Hacks 92 | . 5 1 9 6 . . 1 10 1 32 . 4 . 1 22 . Record 34 | . . . . . . . . 8 . 11 . . . . 15 . Part Schematic 11 | . . . . . . . . . . 11 . . . . . . Robot Schematic 7 | . . . . . . . . . . 7 . . . . . . Prototype ID Bank 13 | . 2 . 1 1 . . . . . 3 . 1 . . 5 . Open Door 6 | . . . . . . . . 2 1 . . . . 1 2 . Level Access Points 1 | . . . . . . . . . . . . 1 . . . . Terminal Index 2 | . . . . 1 . . . . . . . 1 . . . . Alert Level 3 | . . . 2 1 . . . . . . . . . . . . Unreport Threat 7 | . 1 . 4 2 . . . . . . . . . . . . Locate Traps 4 | . 1 . 1 1 . . 1 . . . . . . . . . Hauler Manifests 3 | . 1 . 1 . . . . . . . . 1 . . . . Derelict Proto ID Bank 1 | . . 1 . . . . . . . . . . . . . . Fabricator Hacks 2 | . . . . . . . 2 . . . . . . . . . Network Status 1 | . . . . . . . 1 . . . . . . . . . Build 1 | . . . . . . . 1 . . . . . . . . . Repair Station Hacks . | . . . . . . . . . . . . . . . . . Recycling Unit Hacks . | . . . . . . . . . . . . . . . . . Scanalyzer 2 | . . . 2 . . . . . . . . . . . . . Insert Component 2 | . . . 2 . . . . . . . . . . . . . Garrison Access Hacks 4 | . . . 1 1 1 . . . . . . 1 . . . . Seal Access 4 | . . . 1 1 1 . . . . . . 1 . . . . Unauthorized Hacks 16 | . 3 . 4 5 . . 2 . . . . 2 . . . . Terminals 14 | . 3 . 4 4 . . 1 . . . . 2 . . . . Track 3 | . . . 2 1 . . . . . . . . . . . . Assimilate 1 | . 1 . . . . . . . . . . . . . . . Botnet 9 | . 2 . 2 2 . . 1 . . . . 2 . . . . Disrupt 1 | . . . . 1 . . . . . . . . . . . . Fabricators 2 | . . . . 1 . . 1 . . . . . . . . . Report 2 | . . . . 1 . . 1 . . . . . . . . . Repair Stations . | . . . . . . . . . . . . . . . . . Recycling Units . | . . . . . . . . . . . . . . . . . Scanalyzers . | . . . . . . . . . . . . . . . . . Garrison Access . | . . . . . . . . . . . . . . . . . Data Cores Recovered . | . . . . . . . . . . . . . . . . . Used . | . . . . . . . . . . . . . . . . . Hacking Detections 35 | . 8 . 8 9 . . 4 . . . . 6 . . . . Full Trace Events 2 | . . . 1 . . . . . . . . 1 . . . . Feedback Events 1 | . . . 1 . . . . . . . . . . . . . Corruption 1 | . . . 1 . . . . . . . . . . . . . Feedback Blocked . | . . . . . . . . . . . . . . . . . Robot Schematics Acquired 7 | . . . . . . . . . . 7 . . . . . . Robots Built 1 | . . . . . . . 1 . . . . . . . . . Authchips . | . . . . . . . . . . . . . . . . . Time 81 | . . . . . . . 81 . . . . . . . . . Total Robot Build Rating 1 | . . . . . . . 1 . . . . . . . . . Part Schematics Acquired 11 | . . . . . . . . . . 11 . . . . . . Parts Built . | . . . . . . . . . . . . . . . . . Authchips . | . . . . . . . . . . . . . . . . . Time . | . . . . . . . . . . . . . . . . . Total Part Build Rating . | . . . . . . . . . . . . . . . . . Parts Repaired . | . . . . . . . . . . . . . . . . . Time . | . . . . . . . . . . . . . . . . . Parts Recycled . | . . . . . . . . . . . . . . . . . Recycled Matter . | . . . . . . . . . . . . . . . . . Retrieved Matter . | . . . . . . . . . . . . . . . . . Retrieved Components . | . . . . . . . . . . . . . . . . . Parts Scanalyzed . | . . . . . . . . . . . . . . . . . Part Schematics Acquired . | . . . . . . . . . . . . . . . . . Parts Damaged . | . . . . . . . . . . . . . . . . . Bothacking | -11 -10 -10 -8 -7 -6 -6 -6 -6 -6 -6 -5 -5 -5 -5 -5 -4 ------------ Run | Yrd Mat Sub Mat Fac Fac Was Fac Low Low Dat Pro Fac Upp Upp War Pro Used RIF Installer . | . . . . . . . . . . . . . . . . . Robots Hacked . | . . . . . . . . . . . . . . . . . Non-combat . | . . . . . . . . . . . . . . . . . Combat . | . . . . . . . . . . . . . . . . . Robot Hacks Applied . | . . . . . . . . . . . . . . . . . Relay Couplers Released . | . . . . . . . . . . . . . . . . . Fabnet Peak Effective % . | . . . . . . . . . . . . . . . . . Robots Rewired . | . . . . . . . . . . . . . . . . . Allies Hacked . | . . . . . . . . . . . . . . . . . Hacks Repelled . | . . . . . . . . . . . . . . . . . Allies | -11 -10 -10 -8 -7 -6 -6 -6 -6 -6 -6 -5 -5 -5 -5 -5 -4 -------- Run | Yrd Mat Sub Mat Fac Fac Was Fac Low Low Dat Pro Fac Upp Upp War Pro Total Allies 3 | . 1 . . . . . 1 . . . 1 . . . . . Largest Group 1 | . 1 . . . . . 1 . . . 1 . . . . . Highest-Rated Group 96 | . 10 . . . . . 10 . . . 96 . . . . . Highest-Rated Ally 96 | . 10 . . . . . 10 . . . 96 . . . . . Total Orders 4 | . 4 . . . . . . . . . . . . . . . STAY 2 | . 2 . . . . . . . . . . . . . . . FOLLOW 2 | . 2 . . . . . . . . . . . . . . . Ally Attacks 19 | . . . . . . . . . . . 19 . . . . . Total Damage 615 | . . . . . . . . . . . 615 . . . . . Kills 2 | . . . . . . . . . . . 2 . . . . . Allies Corrupted . | . . . . . . . . . . . . . . . . . Allies Melted 1 | . . . . . . . . . . . . . . . 1 . Intel | -11 -10 -10 -8 -7 -6 -6 -6 -6 -6 -6 -5 -5 -5 -5 -5 -4 ------- Run | Yrd Mat Sub Mat Fac Fac Was Fac Low Low Dat Pro Fac Upp Upp War Pro Robot Analysis Total . | . . . . . . . . . . . . . . . . . Derelict Logs Recovered 11 | . . 3 . . . . . 2 . . 2 . 2 2 . . Drone Launches . | . . . . . . . . . . . . . . . . . Drone Recoveries . | . . . . . . . . . . . . . . . . . Exploration | -11 -10 -10 -8 -7 -6 -6 -6 -6 -6 -6 -5 -5 -5 -5 -5 -4 ------------- Run | Yrd Mat Sub Mat Fac Fac Was Fac Low Low Dat Pro Fac Upp Upp War Pro Turns Passed 22513 | 53 1739 6708 3991 1624 109 118 1293 1209 743 69 1084 1068 991 651 1043 20 Spaces Moved 13367 | 29 896 2822 1516 979 97 108 842 1221 753 77 829 660 1050 720 766 2 Core 78 | 7 . . . . . . . . . . 59 1 . . 11 . Treads 1911 | . 525 1386 . . . . . . . . . . . . . . Legs 4072 | 22 368 . . . . . 566 1221 753 77 770 295 . . . . Wheels 5723 | . 3 1436 1516 979 97 108 276 . . . . 358 286 216 448 . Hover 1554 | . . . . . . . . . . . . 6 764 504 280 . Flight 29 | . . . . . . . . . . . . . . . 27 2 Fastest Speed 34 | 50 95 120 105 95 110 95 90 90 90 90 90 62 44 48 34 34 Average Speed 128 | 123 143 185 195 116 110 105 93 90 90 90 108 118 62 71 112 34 Slowest Speed 600 | 200 190 210 295 210 110 110 115 90 90 90 600 500 111 125 205 34 Overloaded Moves . | . . . . . . . . . . . . . . . . . Propulsion Burnouts . | . . . . . . . . . . . . . . . . . Robots Hopped . | . . . . . . . . . . . . . . . . . Cave-ins Triggered . | . . . . . . . . . . . . . . . . . Exploration Rate (%) 59 | 4 99 84 79 35 3 97 25 98 73 72 67 23 92 62 96 2 Regions Visited 16 Branch Regions 9 Pre-discovered Areas 4 | . . . . . . . . 1 . 1 1 . . 1 . . Known Exits Taken 2 | . . . 1 . . . . . . . . 1 . . . . Unknown Exits Taken 12 | 1 1 1 . 1 . . 1 1 1 1 1 . 1 1 1 . Scrap Searched 20 | . . 7 . . . . . 6 2 . . . 3 2 . . Spaces Dug 148 | . 1 . 9 19 . . 39 5 26 . . 27 16 . 6 . Terrain Destroyed 510 | . 1 . 34 33 . . 73 8 79 . . 39 26 3 214 . Melee 48 | . 1 . 6 18 . . 10 1 1 . . . 5 . 6 . Projectile 138 | . . . 28 6 . . 18 7 . . . 39 21 3 16 . AOE 324 | . . . . 9 . . 45 . 78 . . . . . 192 . Terrain Rammed . | . . . . . . . . . . . . . . . . . Walls Destroyed . | . . . . . . . . . . . . . . . . . Machines Disabled . | . . . . . . . . . . . . . . . . . Actions | -11 -10 -10 -8 -7 -6 -6 -6 -6 -6 -6 -5 -5 -5 -5 -5 -4 --------- Run | Yrd Mat Sub Mat Fac Fac Was Fac Low Low Dat Pro Fac Upp Upp War Pro Total 17510 | 44 1266 4183 2148 1359 100 112 1272 1312 800 76 936 838 1295 845 911 13 Wait 2749 | 3 292 1187 228 210 . 5 322 58 31 . 50 39 155 115 54 . Move 13352 | 28 895 2821 1515 978 97 107 841 1220 752 76 828 659 1049 719 765 2 Hop . | . . . . . . . . . . . . . . . . . Pick Up 205 | 7 9 41 89 17 1 . 11 3 . . . 15 6 1 5 . Fast Attach 98 | 5 5 6 8 6 1 . 12 7 3 . 10 18 1 1 15 . Attach 69 | 1 1 2 27 8 . . 4 . . . 1 5 9 1 9 1 Detach 20 | . 2 2 3 1 . . . . . . . 6 . . 6 . Swap 129 | . 7 21 18 29 . . 6 5 3 . 1 7 20 2 10 . Drop 176 | . 9 30 42 37 1 . 12 9 1 . . 4 8 . 23 . Fire 555 | . 45 40 204 46 . . 46 4 5 . 23 85 37 6 14 . Melee 131 | . 1 23 11 19 . . 13 6 5 . 23 . 10 . 10 10 Ram . | . . . . . . . . . . . . . . . . . Kick . | . . . . . . . . . . . . . . . . . Crush . | . . . . . . . . . . . . . . . . . Escape Stasis 13 | . . . . 8 . . 5 . . . . . . . . . Rewire . | . . . . . . . . . . . . . . . . . Trap . | . . . . . . . . . . . . . . . . . Miscellaneous 13 | . . 10 3 . . . . . . . . . . . . . Route ------- -11/Scrapyard -10/Materials (discovered 6 exits: [*Mat x3] / [*Min x2] / *Sub) -10/Subcaves (discovered 3 exits: *Mat x2 / Rec) -8/Materials (discovered 4 exits: *Fac x3 / Sto) -7/Factory -6/Factory -6/Waste -6/Factory (discovered 3 exits: *Fac x2 / *Low) -6/Lower Caves -6/Lower Caves -6/Data Miner -5/Proximity Caves -5/Factory (discovered 6 exits: Fac x4 / *Upp x2) -5/Upper Caves -5/Upper Caves (discovered 2 exits: *Fac / *War) -5/Warlord -4/Proximity Caves History --------- Turn | Location | Event 19 | -11/Scrapyard | Discovered new exit (range 16) 54 | -11/Scrapyard | Entered Materials 243 | -10/Materials | Discovered new exit (range 10) 313 | -10/Materials | Build established: Mutant 373 | -10/Materials | Discovered new exit (range 14) 505 | -10/Materials | Discovered new exit (range 8) 529 | -10/Materials | Discovered new exit (range 16) 1156 | -10/Materials | Discovered new exit (range 13) 1244 | -10/Materials | Central database locked down 1757 | -10/Materials | Discovered new exit (range 6) 1793 | -10/Materials | Entered Subcaves 1794 | -10/Subcaves | A swath of the cavern ceiling suddenly collapsed 2433 | -10/Subcaves | A Subdweller sparked back to life 2433 | -10/Subcaves | A Subdweller sparked back to life 2433 | -10/Subcaves | A Subdweller sparked back to life 2476 | -10/Subcaves | Found Prototype Leg 2548 | -10/Subcaves | Learned 2 Materials zone layouts 2626 | -10/Subcaves | A swath of the cavern ceiling suddenly collapsed 3658 | -10/Subcaves | Discovered new exit (range 9) 5316 | -10/Subcaves | Build established: Hauler-Mutant 6602 | -10/Subcaves | Shifting Twisted Machinery released Scrap Shield 6636 | -10/Subcaves | Learned Materials emergency access door positions 6660 | -10/Subcaves | Visited 4L-MR0's lab 6668 | -10/Subcaves | Identified Arachnoskeleton 6692 | -10/Subcaves | Found Power Bank 6832 | -10/Subcaves | Shifting Twisted Machinery released Piercing Trap 7856 | -10/Subcaves | Discovered new exit (range 14) 7921 | -10/Subcaves | Shifting Twisted Machinery released Sub. Power Source 7928 | -10/Subcaves | Shifting Twisted Machinery released Battle Cannon 7935 | -10/Subcaves | Core integrity fell below 50% 7976 | -10/Subcaves | Identified exit to Recycling 8501 | -10/Subcaves | Entered Materials 8501 | -8/Materials | Evolved 4 slots: Propulsion x1, Utility x3 8502 | -8/Materials | Identified exit to Factory 8502 | -8/Materials | Identified exit to Storage 9062 | -8/Materials | Garrison activated, responded to threat 10008 | -8/Materials | Lost 3 parts (1n1u1w) 10439 | -8/Materials | Lost 14 parts (1p5n7u1w) 11249 | -8/Materials | Discovered exit to Factory (range 5) 12041 | -8/Materials | Discovered exit to Factory (range 16) 12492 | -8/Materials | Entered Factory 12492 | -7/Factory | Evolved 2 slots: Utility x2 12881 | -7/Factory | Garrison activated, responded to threat 13067 | -7/Factory | Build established: Mutant 13590 | -7/Factory | Discovered new exit (range 4) 14116 | -7/Factory | Entered another Factory area 14116 | -6/Factory | Evolved 2 slots: Power x1, Utility x1 14225 | -6/Factory | Sucked down chute 14225 | -6/Factory | Entered Waste 14231 | -6/Waste | Spotted C-40 Crusher 14240 | -6/Waste | EMP discharged 14264 | -6/Waste | Spotted C-40 Crusher 14274 | -6/Waste | Spotted C-40 Crusher 14283 | -6/Waste | Spotted C-40 Crusher 14284 | -6/Waste | Spotted C-40 Crusher 14293 | -6/Waste | Spotted C-40 Crusher 14300 | -6/Waste | Crushed by Compactor (1 part destroyed, 1 dropped) 14310 | -6/Waste | Crushed by Compactor (1 part destroyed, 1 dropped) 14313 | -6/Waste | Crushed by Compactor (1 part destroyed, 1 dropped) 14325 | -6/Waste | Discovered new exit (range 19) 14340 | -6/Waste | EMP discharged 14340 | -6/Waste | System corruption reached 10% 14343 | -6/Waste | Entered Factory 14344 | -6/Factory | Lost 3 parts (2u1w) 14943 | -6/Factory | Attached Arachnoskeleton, gained temporary slots: Propulsion x3 14969 | -6/Factory | Discovered new exit (range 5) 15100 | -6/Factory | Fabricated A-02 Transporter (x1) 15342 | -6/Factory | Discovered new exit (range 7) 15631 | -6/Factory | Discovered new exit (range 7) 15636 | -6/Factory | Entered Lower Caves 16129 | -6/Lower Caves | Attracted the attention of an 0b10 checkpoint 16262 | -6/Lower Caves | Learned Factory terminal intel 16282 | -6/Lower Caves | Discovered new exit (range 8) 16432 | -6/Lower Caves | Build established: Gladiator 16477 | -6/Lower Caves | Learned Armory stockpile data 16477 | -6/Lower Caves | Learned Research security intel 16477 | -6/Lower Caves | Learned Research terminal intel 16633 | -6/Lower Caves | Learned 4 Factory zone layouts 16845 | -6/Lower Caves | Entered another Lower Caves area 16850 | -6/Lower Caves | Attracted the attention of an 0b10 checkpoint 16982 | -6/Lower Caves | Ambushed by research squad 17214 | -6/Lower Caves | Discovered new exit (range 10) 17275 | -6/Lower Caves | Encountered a Warlord checkpoint 17443 | -6/Lower Caves | Spotted B-75 Beast 17588 | -6/Lower Caves | Entered Data Miner 17588 | -6/Data Miner | Discovered new exit (range 6) 17602 | -6/Data Miner | Met Data Miner 17628 | -6/Data Miner | Learned location of Section 7 (-3) 17628 | -6/Data Miner | Acquired the access code to Warlord's prototype stash 17637 | -6/Data Miner | Received God Mode back door access code from Data Miner 17657 | -6/Data Miner | Entered Proximity Caves 17660 | -5/Proximity Caves | Spotter reported a threat 17726 | -5/Proximity Caves | Learned location of 1 exit from Factory 17972 | -5/Proximity Caves | Build established: Scavenger-Gladiator 17979 | -5/Proximity Caves | Spotted B-75 Beast 18129 | -5/Proximity Caves | Entered a huge 0b10 base via the front door 18129 | -5/Proximity Caves | Spotted B-75 Beast 18210 | -5/Proximity Caves | Learned location of Armory (-4) 18412 | -5/Proximity Caves | Escorted by Enhanced Grunt 18414 | -5/Proximity Caves | Core integrity fell below 50% 18449 | -5/Proximity Caves | Lost 11 parts (2p3n4u2w) 18691 | -5/Proximity Caves | Core integrity fell below 20% 18713 | -5/Proximity Caves | Discovered new exit (range 8) 18732 | -5/Proximity Caves | Lost 5 parts (1p3u1w) 18741 | -5/Proximity Caves | Entered Factory 18741 | -5/Factory | Evolved 2 slots: Propulsion x2 18742 | -5/Factory | Identified exit to Upper Caves 18744 | -5/Factory | Loaded intel: 26 terminal locations 18772 | -5/Factory | Lost 4 parts (1n2u1w) 18889 | -5/Factory | Identified exit to Factory 19011 | -5/Factory | Build established: Mutant 19523 | -5/Factory | Build established: Scavenger-Mutant 19615 | -5/Factory | Cargo convoy interrupted 19683 | -5/Factory | Discovered exit to Upper Caves (range 11) 19809 | -5/Factory | Entered Upper Caves 19858 | -5/Upper Caves | Build established: Scavenger-Skirmisher 20240 | -5/Upper Caves | Attracted the attention of an 0b10 outpost 20306 | -5/Upper Caves | Lost 7 parts (4n1u2w) 20366 | -5/Upper Caves | Spotted B-75 Beast 20505 | -5/Upper Caves | Discovered new exit (range 7) 20526 | -5/Upper Caves | Learned location of 1 exit from Factory 20526 | -5/Upper Caves | Learned Factory terminal intel 20558 | -5/Upper Caves | Build established: Scavenger-Scout 20800 | -5/Upper Caves | Entered another Upper Caves area 20819 | -5/Upper Caves | Discovered exit to Factory (range 12) 21043 | -5/Upper Caves | Discovered new exit (range 17) 21200 | -5/Upper Caves | Lost 3 parts (2n1u) 21451 | -5/Upper Caves | Entered Warlord 21461 | -5/Warlord | Build established: Scavenger-Skirmisher 21515 | -5/Warlord | System corruption cleaned by Quarantine Array 21821 | -5/Warlord | Visited the Vortex Lab 21829 | -5/Warlord | Warlord's base attacked by MAIN.C 21834 | -5/Warlord | Found Prototype Piercing Weapon 21835 | -5/Warlord | Identified Vortex Lance 21840 | -5/Warlord | Found Prototype Launcher 21840 | -5/Warlord | Identified Vortex Catalyst Activator 21846 | -5/Warlord | Found Prototype Energy Gun 21846 | -5/Warlord | Identified Vortex Rail 21863 | -5/Warlord | Found Vortex Rail 22043 | -5/Warlord | Met Warlord 22055 | -5/Warlord | Opened Warlord's prototype stash 22083 | -5/Warlord | Found Prototype Reactor 22083 | -5/Warlord | Identified Vortex Chain Reactor 22179 | -5/Warlord | Warlord forces counterattacked 22246 | -5/Warlord | Spotted Executioner 22253 | -5/Warlord | Spotted B-75 Beast 22255 | -5/Warlord | Spotted Executioner 22255 | -5/Warlord | Spotted B-86 Titan 22304 | -5/Warlord | Lost 12 allies 22320 | -5/Warlord | Opened side exit 22407 | -5/Warlord | Spotted Striker 22424 | -5/Warlord | Destroyed Executioner 22428 | -5/Warlord | Destroyed Striker 22441 | -5/Warlord | Spotted Executioner 22447 | -5/Warlord | Lost 3 parts (2n1u) 22456 | -5/Warlord | Core integrity fell below 50% 22458 | -5/Warlord | Destroyed Executioner 22458 | -5/Warlord | Spotted Striker 22459 | -5/Warlord | Spotted Striker 22474 | -5/Warlord | Released all parts (7) 22479 | -5/Warlord | Destroyed 21 combat bots 22483 | -5/Warlord | Core integrity fell below 20% 22489 | -5/Warlord | Discovered new exit (range 14) 22494 | -5/Warlord | Entered Proximity Caves 22501 | -4/Proximity Caves | Lost 3 parts (1p2u) 22514 | -4/Proximity Caves | Destroyed by G-67 Veteran with Field Laser Last Messages --------------- 22485_ Acquired Xenon Bombardment Thruster. 22486_ Acquired 35 matter. 22488_ Acquired 26 matter. 22489_ EXIT=FOUND LOCATION=UNKNOWN GOAL=ESCAPE 22496_ G-73 Enforcer: "INCOMING HOSTILES. DEFEND SHIPMENT RENDEZVOUS PERIMETER." 22496_ G-73 Enforcer destroyed. 22498_ G-67 Veteran suffers critical hit (Sunder). 22498_ G-67 Veteran Unknown Leg ripped off. 22500_ G-67 Veteran destroyed. 22502_ Destroyed Unknown Reactor. 22504_ Adv. Heat Sink fries itself beyond repair. 22504_ G-67 Veteran suffers critical hit (Sunder). 22504_ G-67 Veteran Unknown Leg ripped off. 22505_ Xenon Bombardment Thruster destroyed. 22506_ Myomer Leg fries itself beyond repair. 22507_ Phase Gun fries itself beyond repair. 22508_ G-67 Veteran destroyed. Map ----- +----------------------------------------------------+ | ?????????????????????????????????????????????? | | ?????????????????????????????????????????????? | | ?????????????????????????????????????????????? | | ?????????????????????????????????????????????? | | ?????????????????????????????????????????????? | | ?????????????????????????????????????????????? | | ?????????????????????????????????????????????? | | ?????????????????????????????????????????????? | | ?????????????????????????????????????????????? | | ?????????????????????????????????????????????? | | ?????????????????????????????????????????????? | | ?????????????????????????????????????????????? | | ?????????????????????????????????????????????? | | ?????????????????????????????????????????????? | | ?????????????????????????????????????????????? | | ?????????????????????????????????????????????? | | ?????????????????????????????????????????????? | | ?????????????????????????????????????????????? | | ?????????????????????????????????????????????? | | ?????????????????????????????????????????????? | | ?????????????????????????????????????????????? | | ?????????????????????????????????????????????? | | ?????????????????????????????????????????????? | | ????????????????????????? #??????????????????? | | ???????????????????####? #???????????????????? | | ??????????????????## @# ##??????????????????? | | ??????????????????# [%g! # #???????????????? | | ??????????????????# ==[ ?????????? | | ??????????????????## ?????????? | | ???????????????????## ###??????????? | | ????????????????????# # ####????????????? | | ????????????????????# ## ##???????????????? | | ????????????????????# #?# ##????????????????? | | ???????????????????? ?? #?????????????????? | | ???????????????????? ???#?????????????????? | | ???????????????????? ????????????????????? | | ???????????????????? ????????????????????? | | ???????????????????? ## #???????????????????? | | ???????????????????? ?? #???????????????????? | | ???????????????????? ?? #???????????????????? | | ???????????????????? ??? ???????????????????? | | ?????????????????????????????????????????????? | | ?????????????????????????????????????????????? | | ?????????????????????????????????????????????? | | ?????????????????????????????????????????????? | | ?????????????????????????????????????????????? | | ?????????????????????????????????????????????? | | ?????????????????????????????????????????????? | | ?????????????????????????????????????????????? | | ?????????????????????????????????????????????? | +----------------------------------------------------+ Best States ------------- Heat Dissipation 90 Energy Generation 55 Energy Capacity 700 Matter Stores 428 Matter Capacity 500 Sight Range 20 Robot Scan Range 16 Terrain Scan Range 20 Terrain Scan Density 210 Jamming Range 12 Cloak Strength 3 Armor Coverage 1025 Resistance: KI 30 Core Shielding 20 Weapon Shielding 66 Melee Speed Boost 20 Evasion (%) 63 Targeting Accuracy 16 Melee Accuracy 14 Target Analysis 5 Recoil Reduction 2 Particle Charging 20 Kinecelleration 30 Defensive Hacking 10 Authchip Count 1 Item Schematics ----------------- Combat Drone Bay | -6/Data Miner | Free Lgt. Regenerative Plating | -6/Data Miner | Free Enh. Flexi-carbon Leg | -6/Data Miner | Free Imp. Matter Compressor | -6/Data Miner | Free Plasma Sword | -6/Data Miner | Free Hvy. Siege Treads | -6/Data Miner | Free Adv. Coolant Injector | -6/Data Miner | Free Hvy. Gauss Cannon | -6/Data Miner | Free Adv. Trap Scanner | -6/Data Miner | Free Adv. Recalibrator | -6/Data Miner | Free Adv. Weapon Cycler | -6/Data Miner | Free Robot Schematics ------------------ A-15 Conveyor | -6/Data Miner | Free G-50 Soldier | -6/Data Miner | Free C-35 Carver | -6/Data Miner | Free B-48 Gladiator | -6/Data Miner | Free R-10 Processor | -6/Data Miner | Free W-44 Eye | -6/Data Miner | Free L-61 Swordsman | -6/Data Miner | Free Fabricated ------------ A-02 Transporter | x1 | -6/Factory | Preloaded Alien Tech Used ----------------- None Achievements -------------- Killing Spree My Command Is Your Wish Packrat Slippery One Tank Challenges ------------ None Game ------ Seed PortablePhysicsEdition Manual? 0 Play Time 04:57:01 Cumulative 164.6 hours Start 2024.05.16 @ 20:11:27 End 2024.05.18 @ 23:53:40 Sessions 11 Manual Loads 0 Difficulty Rogue Special Mode None Game No. 100 Rogue 100 Adventurer 0 Explorer 0 Win Type - Total 4 Types 4/0/0/0/0/0/0/0/0 Lore% 48 Gallery% 58 Achievement% 42 Wizard Run 0 Options --------- Layout 0 ASCII 0 Keyboard 0 Movement Numpad Keybinds 0 Fullscreen 1 Font 24/Smallcaps Map View 76x50 Zoom Use 0% Tactical HUD 1 Map Filters NONE Filters NONE Steam 1 RUN: 1a55b487-46f8-4758-87ef-f0c597d11bd6